bitfinex/quotes_ETHUSD_20260208
["timestamp","ask_amount","ask_price","bid_price","bid_amount"]
[1770543979850,3.327,2101.3,2100.5,0.98548237]
[1770543980267,0.002,2101.4,2100.5,0.98548237]
[1770543980568,0.002,2101.4,2100.7,0.98448237]
[1770543982474,0.002,2101.4,2100.7,2.17453067]
[1770543982677,0.99280205,2101.4,2100.5,0.001]
[1770543984672,1.18973968,2101.3,2100.5,0.001]
[1770543985061,1.18973968,2101.3,2100.5,0.98548237]
[1770543985255,1.19172595,2101.4,2100.5,0.98548237]
[1770543985464,1.19168428,2101.4,2100.5,0.98548237]
[1770543985850,2.18248633,2101.4,2100.5,0.001]
[1770543986048,0.99080205,2101.3,2100.5,0.001]
[1770543987082,1.19168428,2101.4,2100.5,0.001]
[1770543987375,0.99080205,2101.3,2100.5,0.001]
[1770543988387,0.04083299,2101.2,2100.5,0.001]
[1770543988591,4.31780205,2101.1,2100.5,0.001]
[1770543989159,1.18990956,2101.0,2100.5,0.001]
[1770543989456,2.18071161,2101.0,2100.5,0.001]
[1770543989655,1.18990956,2101.0,2100.5,0.001]
[1770543989879,8.08663826,2101.1,2100.5,0.001]
[1770543989880,4.51688618,2101.1,2100.5,0.001]
[1770543991464,4.51688618,2101.1,2100.5,0.98548237]
[1770543991978,4.51686129,2101.1,2100.5,0.98548237]
[1770543992156,3.327,2101.1,2100.5,0.98548237]
[1770543992357,4.5168541,2101.1,2100.7,0.001]
[1770543994361,3.327,2101.1,2100.7,0.001]
[1770543995096,3.327,2101.1,2100.7,0.98548237]
[1770543995558,3.327,2101.1,2100.8,1.19002284]
[1770543995757,3.327,2101.1,2100.9,0.91376289]
[1770543995958,0.002,2101.4,2100.9,0.91376289]
[1770543996180,3.329,2101.4,2100.9,0.91376289]
[1770543996364,0.002,2101.4,2100.9,0.91376289]
[1770543998478,3.327,2101.3,2100.9,2.10372396]
[1770543999264,0.002,2101.4,2101.0,0.91376289]
[1770543999580,3.329,2101.4,2101.0,0.91376289]
[1770544000303,0.002,2101.4,2101.0,0.91376289]
[1770544000803,3.327,2101.3,2100.7,0.001]
[1770544001094,3.327,2101.3,2100.7,0.91476289]
[1770544001292,3.327,2101.2,2100.7,0.91476289]
[1770544001603,3.327,2101.3,2100.7,0.91476289]
[1770544001989,3.327,2101.2,2100.7,0.91476289]
[1770544002293,3.327,2101.3,2100.7,0.91476289]
[1770544002662,3.327,2101.2,2100.7,0.91476289]
[1770544002889,3.327,2101.3,2100.7,2.10479785]
[1770544003297,3.327,2101.2,2100.7,2.10479785]
[1770544003496,3.327,2101.3,2100.7,2.10479785]
[1770544003985,3.327,2101.2,2100.7,2.10479785]
[1770544005008,3.327,2101.2,2100.9,0.001]
[1770544005193,0.002,2101.1,2100.9,0.001]
[1770544006710,3.329,2101.1,2100.9,0.001]
[1770544007820,3.329,2101.1,2100.7,0.001]
[1770544007821,2.15444372,2101.1,2100.7,0.001]
[1770544008028,3.327,2101.0,2100.7,0.001]
[1770544008723,3.327,2101.0,2100.7,0.91476289]
[1770544008892,0.002,2101.1,2100.7,0.91476289]
[1770544009590,0.002,2101.1,2100.7,2.10483927]
[1770544010313,0.002,2101.1,2100.7,0.91476289]
[1770544010513,3.329,2101.1,2100.7,0.91476289]
[1770544010689,3.329,2101.1,2100.7,0.001]
[1770544010889,3.329,2101.1,2100.7,1.19107933]
[1770544011114,3.329,2101.1,2100.7,0.001]
[1770544011318,4.51885861,2101.1,2100.7,0.001]
[1770544014707,3.329,2101.1,2100.7,0.001]
[1770544015205,0.002,2101.1,2100.7,0.91476289]
[1770544015527,0.002,2101.4,2100.8,0.91376289]
[1770544015701,3.327,2101.3,2100.8,0.91376289]
[1770544016704,3.327,2101.3,2101.0,0.91376289]
[1770544017116,0.002,2101.4,2101.0,0.91376289]
[1770544017403,3.329,2101.4,2101.0,0.91376289]
[1770544018023,0.002,2101.4,2101.0,0.91376289]
[1770544018618,0.002,2101.1,2101.0,2.10367245]
[1770544018826,0.002,2101.4,2101.1,0.91376289]
[1770544020829,0.002,2101.4,2101.2,2.10355919]
[1770544021531,3.329,2101.4,2101.1,1.18984755]
[1770544021713,3.24564816,2101.4,2101.0,1.18987958]
[1770544021903,0.002,2101.6,2101.1,1.18985142]
[1770544022107,0.002,2101.6,2100.9,8.08772003]
[1770544022308,3.24564816,2101.5,2101.1,1.18984924]
[1770544023235,3.24564816,2101.5,2101.0,4.75960533]
[1770544023822,3.24564816,2101.5,2101.0,5.67336822]
[1770544024710,3.24564816,2101.5,2101.1,0.91376289]
[1770544025328,3.24564816,2101.5,2101.0,4.75960533]
[1770544025329,3.24564816,2101.5,2101.0,1.18990956]
[1770544026343,4.43529205,2101.5,2100.9,3.328]
[1770544027136,4.43529205,2101.5,2100.9,4.51796324]
[1770544027719,3.24564816,2101.5,2100.9,5.46301051]
[1770544028111,3.24564816,2101.5,2101.0,0.94504727]
[1770544028717,3.11026973,2101.5,2101.2,0.94504727]
[1770544029237,0.002,2101.6,2101.2,0.94504727]
[1770544029545,0.002,2101.6,2101.4,0.94504727]
[1770544029954,0.002,2102.0,2101.6,0.94504727]
[1770544030111,0.002,2102.2,2101.7,0.94504727]
[1770544030529,3.11026973,2102.1,2101.7,0.94504727]
[1770544031247,1e-08,2102.2,2101.8,0.94504727]
[1770544031415,1e-08,2102.2,2101.9,2.13444733]
[1770544031615,0.002,2102.4,2102.0,3.326]
[1770544031815,0.002,2102.4,2102.1,0.94504727]
[1770544032033,0.33115634,2102.8,2102.1,0.94504727]
[1770544032223,0.002,2103.0,2102.1,0.94504727]
[1770544033537,0.002,2103.0,2102.2,2.15060883]
[1770544033721,0.95191967,2103.0,2102.0,1.18929801]
[1770544034243,0.95191967,2103.0,2102.1,1.18927925]
[1770544034746,0.95191967,2103.0,2102.1,1.18927255]
[1770544034949,0.95191967,2103.0,2101.9,4.51537231]
[1770544035649,0.94991967,2102.6,2101.9,3.326]
[1770544035947,0.94991967,2102.6,2101.8,1.18944599]
[1770544036720,0.94991967,2102.6,2101.9,1.18939403]
[1770544037149,2.14073877,2103.0,2102.0,0.9613785]
[1770544037359,2.14070467,2103.0,2102.0,0.9613785]
[1770544037533,0.95191967,2103.0,2102.1,1.1892869]
[1770544037853,0.002,2103.0,2102.1,2.1506654]
[1770544038358,0.002,2103.0,2102.2,4.2863785]
[1770544038558,1.19081679,2103.0,2102.2,3.325]
[1770544038744,1.19078078,2103.0,2102.2,3.325]
[1770544039636,1.19078078,2103.0,2102.3,1.18917376]
[1770544039935,0.002,2103.0,2102.3,1.18917376]
[1770544041247,0.95191967,2103.0,2102.2,3.325]
[1770544041640,0.94991967,2102.8,2102.2,3.325]
[1770544043262,0.94991967,2102.8,2102.0,1.18933247]
[1770544043460,0.94991967,2102.8,2102.2,1.18922739]
[1770544043632,4.75733786,2103.0,2102.2,1.18922183]
[1770544043834,5.70725753,2103.0,2102.1,1.18924622]
[1770544044254,0.002,2102.8,2102.1,1.18924622]
[1770544044646,0.002,2102.8,2102.2,0.9613785]
[1770544044865,0.002,2102.8,2102.1,1.18924622]
[1770544045567,0.95191967,2102.8,2101.5,0.9613785]
[1770544045742,2.13886721,2102.7,2101.6,9.04462909]
[1770544045942,2.13886721,2102.7,2101.7,0.9613785]
[1770544047867,0.94991967,2102.6,2101.7,2.15085117]
[1770544048169,0.95191967,2102.8,2101.8,0.9613785]
[1770544048342,0.002,2102.8,2101.8,0.9613785]
[1770544048542,0.002,2102.8,2101.8,1.00221149]
[1770544050368,0.002,2102.8,2102.0,0.9613785]
[1770544050577,0.002,2102.8,2101.9,1.18940006]
[1770544051844,0.002,2102.8,2101.9,2.15077856]
[1770544052151,0.002,2102.8,2102.0,0.9613785]
[1770544052671,0.002,2102.8,2102.2,0.9613785]
[1770544054347,0.002,2102.8,2102.1,1.1892869]
[1770544055677,0.94331344,2102.8,2102.0,1.18931936]
[1770544056754,1.18894754,2102.7,2101.9,1.18940006]
[1770544057270,1.18894754,2102.7,2102.3,0.001]
[1770544057857,0.002,2102.8,2102.3,0.001]
[1770544060280,0.002,2102.8,2102.3,0.90296979]
[1770544060977,0.002,2102.8,2102.4,1.18911719]
[1770544061583,0.002,2102.8,2102.4,2.09108698]
[1770544062286,0.002,2102.8,2102.3,1.1901633]
[1770544063071,0.002,2102.8,2102.3,0.001]
[1770544065369,0.002,2102.8,2102.3,0.90296979]
[1770544065984,0.002,2102.8,2102.3,0.001]
[1770544068193,0.002,2102.8,2102.3,0.90296979]
[1770544068495,0.002,2102.8,2102.4,3.324]
[1770544069205,0.002,2102.6,2102.5,1.18906064]
[1770544069398,0.002,2102.8,2102.5,1.18906064]
[1770544070397,0.002,2102.8,2102.4,3.324]
[1770544070575,0.002,2102.8,2102.3,0.001]
[1770544070775,0.002,2102.8,2102.3,1.19017051]
[1770544070977,0.002,2102.8,2102.5,1.18906064]
[1770544071887,0.002,2102.8,2102.5,4.51306064]
[1770544076102,0.002,2102.8,2102.5,4.51305309]
[1770544076301,0.002,2102.8,2102.5,3.324]
[1770544077417,0.002,2102.8,2102.5,4.51305182]
[1770544080616,0.002,2102.8,2102.5,4.51405182]
[1770544080921,0.002,2102.6,2102.5,4.51405182]
[1770544081637,0.002,2102.6,2102.5,4.51406064]
[1770544089015,0.002,2102.8,2102.6,0.97353052]
[1770544089205,0.002,2103.3,2102.6,0.97353052]
[1770544090326,0.002,2103.6,2102.6,0.97353052]
[1770544091125,0.002,2103.6,2102.8,0.97353052]
[1770544091300,0.002,2103.6,2102.9,4.29753052]
[1770544092330,0.002,2103.6,2103.0,0.97353052]
[1770544092531,0.002,2103.7,2103.1,0.97353052]
[1770544093232,1e-08,2103.8,2103.2,0.97353052]
[1770544093449,1e-08,2103.8,2103.4,0.91574682]
[1770544094830,0.002,2103.9,2103.4,0.91574682]
[1770544095341,0.002,2103.9,2103.5,2.10424218]
[1770544095817,0.002,2104.2,2103.6,0.91574682]
[1770544096134,0.002,2104.2,2103.7,4.23874682]
[1770544096833,0.002,2104.2,2103.8,0.91574682]
[1770544097410,0.002,2104.2,2103.9,1.1882694]
[1770544098037,0.99045753,2104.9,2104.0,0.91574682]
[1770544098240,0.0008,2104.9,2104.1,4.23874682]
[1770544099032,0.98965753,2104.8,2104.1,3.323]
[1770544099215,0.98965753,2104.8,2103.9,1.1882694]
[1770544099216,0.98965753,2104.8,2103.9,4.5112694]
[1770544099725,0.98965753,2104.7,2103.9,4.5112694]
[1770544100535,0.98965753,2104.7,2103.9,4.51125647]
[1770544101046,1.03049052,2104.7,2103.9,3.323]
[1770544101546,1.03049052,2104.7,2103.8,1.18831536]
[1770544101853,0.98965753,2104.5,2103.7,3.322]
[1770544103151,0.98965753,2104.5,2103.6,1.18843329]
[1770544103325,2.17741883,2104.8,2103.8,0.91574682]
[1770544103921,2.17741883,2104.8,2103.9,1.1882694]
[1770544104619,1.1877613,2104.8,2104.0,0.91574682]
[1770544105262,0.98965753,2104.7,2103.8,1.1882854]
[1770544105962,0.98965753,2104.5,2104.1,0.001]
[1770544106544,0.98965753,2104.3,2103.9,0.001]
[1770544106754,0.98965753,2104.3,2103.1,1.1886805]
[1770544107551,0.04083299,2104.4,2103.1,1.1886805]
[1770544107552,0.98965753,2104.0,2103.1,1.18872134]
[1770544107929,0.98965753,2103.8,2103.0,1.18977793]
[1770544109627,0.98965753,2103.8,2103.0,0.001]
[1770544110029,0.98965753,2103.6,2103.0,0.001]
[1770544112557,2.17809829,2103.6,2103.0,0.001]
[1770544113160,0.98965753,2103.5,2103.0,0.001]
[1770544114542,1.18855186,2103.4,2103.0,0.001]
[1770544116389,0.96678302,2103.0,2102.3,0.001]
[1770544116545,0.96678302,2102.8,2102.3,0.001]
[1770544116746,1.18883446,2102.9,2102.3,0.001]
[1770544116960,1.18849536,2103.5,2102.3,0.98356618]
[1770544117271,2.15526042,2103.6,2102.3,0.98356618]
[1770544118872,2.15526042,2103.6,2103.2,0.001]
[1770544119171,2.15526042,2103.6,2102.4,2.17168337]
[1770544119351,1.00761601,2103.5,2103.0,0.001]
[1770544119751,1.00761601,2103.5,2102.3,1.19013435]
[1770544119971,1.00761601,2103.5,2102.3,0.001]
[1770544119972,0.96678302,2103.1,2102.3,0.001]
[1770544120776,3.323,2103.4,2102.3,0.001]
[1770544120777,1.1886539,2103.3,2102.3,1.19017112]
[1770544121077,1.1886539,2103.3,2102.4,0.98256618]
[1770544124171,1.1886539,2103.3,2102.5,1.18906064]
[1770544124843,1.1886539,2103.3,2102.5,2.17162682]
[1770544125345,1.1886539,2103.3,2102.6,0.98256618]
[1770544127066,1.18843886,2103.6,2102.6,2.17153029]
[1770544127744,0.96678302,2103.5,2102.6,2.17153029]
[1770544129252,1.18855186,2103.4,2102.6,2.17153029]
[1770544131676,1.18855186,2103.4,2102.7,0.98356618]
[1770544132000,0.002,2103.2,2102.7,0.98356618]
[1770544134299,0.002,2103.2,2102.7,0.001]
[1770544135265,0.002,2103.2,2102.7,2.17249766]
[1770544138802,0.002,2103.2,2102.7,0.001]
[1770544139428,0.002,2103.2,2102.7,1.18994524]
[1770544139608,0.002,2103.2,2102.7,0.001]
[1770544140222,0.96878302,2103.2,2102.7,0.001]
[1770544140916,2.15747594,2103.2,2102.7,0.001]
[1770544141797,2.15747594,2103.2,2102.5,0.001]
[1770544141798,1.00761601,2103.1,2102.5,0.001]
[1770544142006,1.00761601,2102.8,2102.5,0.001]
[1770544142203,0.96678302,2102.8,2102.5,0.001]
[1770544142913,1.18894754,2102.7,2102.5,0.001]
[1770544143109,2.15573056,2102.7,2102.5,0.001]
[1770544143608,0.002,2103.2,2102.5,0.001]
[1770544143609,1.19066683,2103.2,2102.5,0.001]
[1770544144012,1.19066683,2103.2,2102.5,0.98356618]
[1770544144926,1.19066683,2103.2,2102.7,0.001]
[1770544145131,2.15744985,2103.2,2102.7,0.001]
[1770544146208,0.96695992,2102.9,2102.5,0.001]
[1770544146515,0.96695992,2102.9,2102.3,0.001]
[1770544147100,1.188891,2102.8,2102.3,0.001]
[1770544147632,2.15585092,2102.8,2102.3,0.001]
[1770544148906,1.188891,2102.8,2102.3,0.001]
[1770544149111,0.96695992,2102.7,2102.3,0.001]
[1770544150408,1.18900409,2102.6,2102.3,0.001]
[1770544151615,0.96695992,2102.5,2101.6,0.001]
[1770544151932,0.96695992,2102.2,2101.4,1.19063884]
[1770544152108,0.96695992,2102.2,2101.4,1.19067686]
[1770544152704,1.1892869,2102.1,2101.4,0.001]
[1770544153429,0.96640417,2102.0,2101.4,0.001]
[1770544154760,1.00723716,2102.0,2101.4,0.001]
[1770544155049,1.18940006,2101.9,2101.4,0.001]
[1770544155422,0.96640417,2101.8,2101.2,0.001]
[1770544156644,1.00723716,2101.7,2101.2,0.001]
[1770544156877,1.18956985,2101.6,2101.2,0.001]
[1770544157025,2.15597402,2101.6,2101.2,0.001]
[1770544157428,2.15597402,2101.6,2101.4,0.001]
[1770544157635,0.96640417,2101.4,2100.6,0.001]
[1770544157941,1.00723716,2101.4,2100.6,0.001]
[1770544159267,2.15614385,2101.3,2100.6,0.001]
[1770544159581,0.96640417,2101.7,2100.6,0.95874366]
[1770544160974,1.18945665,2101.8,2100.6,0.95874366]
[1770544161282,1.18945665,2101.8,2100.8,0.95774366]
[1770544163560,0.96640417,2101.7,2100.8,2.14773838]
[1770544163763,1.00723716,2101.7,2100.8,0.95774366]
[1770544163935,1.00723716,2101.7,2100.7,1.19006195]
[1770544164380,1.00723716,2101.7,2100.8,1.19002054]
[1770544164563,1.18945665,2101.8,2100.8,2.1477642]
[1770544165066,2.15586082,2101.8,2100.8,2.1477642]
[1770544165468,0.96640417,2101.7,2100.8,1.19002054]
[1770544165772,1.00723716,2101.7,2100.6,1.19110084]
[1770544165971,1.00723716,2101.4,2100.6,0.001]
[1770544168169,0.04083299,2101.1,2100.6,0.001]
[1770544169680,1.00723716,2101.1,2100.6,0.001]
[1770544169882,1.00723716,2101.1,2100.8,0.001]
[1770544170053,1.18990956,2101.0,2100.6,0.001]
[1770544171788,4.75925039,2101.2,2100.6,0.001]
[1770544172145,0.04283299,2102.6,2100.6,0.95874366]
[1770544172146,6.482,2101.7,2100.6,0.95874366]
[1770544172374,0.002,2101.7,2100.6,0.95874366]
[1770544172958,0.002,2101.7,2100.6,0.001]
[1770544172959,0.04083299,2101.4,2100.6,0.001]
[1770544173157,0.002,2101.5,2100.6,0.001]
[1770544173372,1.19164238,2101.5,2100.7,0.95774366]
[1770544173576,1.1916428,2101.5,2100.7,0.95774366]
[1770544174088,0.002,2101.5,2100.7,0.95774366]
[1770544174253,0.002,2101.5,2100.9,0.95774366]
[1770544176309,0.002,2101.5,2101.1,0.90335831]
[1770544176922,0.002,2101.5,2100.9,2.09329286]
[1770544177099,0.002,2101.5,2100.9,2.09330623]
[1770544177273,0.002,2101.5,2100.8,1.18997705]
[1770544177473,0.002,2101.5,2100.9,1.18995896]
[1770544178020,0.002,2101.5,2100.8,2.09333864]
[1770544178307,0.002,2101.5,2101.0,0.90335831]
[1770544178530,0.002,2101.5,2101.2,0.90335831]
[1770544179703,0.002,2101.7,2101.3,0.90335831]
[1770544180497,0.002,2101.7,2101.5,0.90335831]
[1770544182289,0.002,2101.7,2101.4,1.18968306]
[1770544182486,0.002,2101.7,2101.3,4.75873227]
[1770544182811,0.002,2101.7,2101.3,5.66209058]
[1770544183378,0.002,2101.7,2101.4,0.90335831]
[1770544183777,0.002,2101.5,2101.4,0.90335831]
[1770544185306,0.002,2101.5,2101.1,0.90335831]
[1770544185511,0.002,2101.5,2101.3,1.18973219]
[1770544186079,0.002,2101.5,2101.3,1.18972432]
[1770544186403,0.002,2101.5,2101.1,5.66267692]
[1770544186611,0.002,2101.5,2101.0,0.001]
[1770544187086,0.002,2101.5,2101.0,1.19088299]
[1770544187407,0.002,2101.5,2101.0,0.001]
[1770544189311,1.18968306,2101.4,2101.0,0.001]
[1770544189496,0.002,2101.5,2101.0,0.001]
[1770544189682,1.191627,2101.5,2101.0,0.001]
[1770544190390,0.002,2101.5,2101.0,0.001]
[1770544190899,0.002,2101.5,2101.0,0.90435831]
[1770544191505,0.002,2101.5,2101.2,0.90335831]
[1770544192309,0.002,2101.7,2101.3,0.90335831]
[1770544193383,0.002,2101.7,2101.4,1.18968306]
[1770544193903,0.002,2101.7,2101.1,0.90335831]
[1770544194212,0.002,2101.7,2101.2,1.18979235]
[1770544194381,0.002,2101.7,2101.3,1.18973397]
[1770544194597,0.002,2101.7,2101.3,2.09309228]
[1770544194914,0.002,2101.7,2101.4,0.90335831]
[1770544195810,0.002,2101.5,2101.4,2.09304137]
[1770544197190,0.002,2101.5,2101.3,4.51569086]
[1770544197821,0.002,2101.5,2101.3,3.326]
[1770544200405,0.002,2101.5,2101.3,4.51573963]
[1770544200916,0.002,2101.5,2101.3,5.41909794]
[1770544201618,0.002,2101.7,2101.4,0.90335831]
[1770544201825,1.19111947,2102.4,2101.5,2.09298476]
[1770544202128,1.19113178,2102.4,2101.6,0.90335831]
[1770544202495,0.002,2102.4,2101.6,0.90335831]
[1770544203914,0.002,2102.4,2101.8,0.90335831]
[1770544204118,0.002,2102.4,2102.0,0.90335831]
[1770544205911,0.002,2102.4,2101.9,4.51536339]
[1770544207213,0.002,2102.4,2101.9,4.51538859]
[1770544207908,0.002,2102.2,2101.9,3.326]
[1770544208237,0.002,2102.2,2101.4,0.90312394]
[1770544208238,0.90639947,2102.2,2101.5,1.18960956]
[1770544208603,0.90639947,2102.2,2101.4,4.51464288]
[1770544208925,0.90639947,2102.2,2101.5,1.18962266]
[1770544209229,0.90639947,2102.2,2101.4,3.325]
[1770544209230,0.90639947,2102.2,2101.6,1.18956785]
[1770544210134,2.0956516,2102.2,2101.4,8.08364387]
[1770544210316,2.0956516,2102.2,2101.4,3.325]
[1770544210635,2.0956516,2102.2,2101.4,4.51464069]
[1770544210841,2.0956516,2102.2,2101.4,3.325]
[1770544211141,0.90439947,2102.1,2101.4,4.51467633]
[1770544211726,0.90439947,2102.1,2101.4,3.325]
[1770544211928,1.19125213,2102.2,2101.2,0.001]
[1770544211929,0.94523246,2102.0,2101.2,0.001]
[1770544212107,2.09376335,2102.0,2101.2,0.001]
[1770544213417,2.13459634,2102.0,2101.2,0.001]
[1770544213620,0.99253267,2101.9,2101.2,0.001]
[1770544214022,1.18945665,2101.8,2101.2,0.001]
[1770544214533,2.18198932,2101.8,2101.2,0.001]
[1770544215908,0.99253267,2101.7,2101.2,0.001]
[1770544216333,1.18956985,2101.6,2101.2,0.001]
[1770544216938,2.18210252,2101.6,2101.2,0.001]
[1770544217706,0.99253267,2101.5,2101.2,0.001]
[1770544218224,1.18968306,2101.4,2101.2,0.001]
[1770544218420,0.99253267,2101.8,2101.2,0.001]
[1770544219738,0.99253267,2101.8,2101.4,0.001]
[1770544219943,0.99253267,2101.6,2101.0,0.001]
[1770544220153,2.18193273,2101.9,2101.1,0.001]
[1770544220647,2.18193273,2101.9,2101.1,0.95591951]
[1770544220946,1.18940006,2101.9,2101.1,0.95591951]
[1770544221141,0.002,2102.2,2101.3,0.95491951]
[1770544222212,0.002,2102.2,2101.4,2.14460257]
[1770544222417,0.002,2102.2,2101.5,0.95491951]
[1770544223419,0.002,2102.2,2101.6,0.95591951]
[1770544224520,0.002,2102.2,2101.7,0.95491951]
[1770544224921,0.002,2102.2,2101.9,0.95491951]
[1770544225430,0.002,2102.2,2102.0,0.95591951]
[1770544225767,0.002,2102.4,2102.0,0.95491951]
[1770544225945,0.002,2102.4,2102.1,0.001]
[1770544226258,0.002,2102.6,2102.1,0.95591951]
[1770544227049,0.002,2102.6,2102.3,0.95491951]
[1770544227555,0.002,2102.6,2102.0,1.18930833]
[1770544227720,0.002,2102.6,2102.2,0.001]
[1770544229422,0.99453267,2102.6,2101.6,4.75826598]
[1770544229726,1.03336566,2102.5,2101.7,0.001]
[1770544230640,1.03336566,2102.5,2101.2,3.325]
[1770544230641,0.99253267,2102.1,2101.1,0.001]
[1770544230844,0.99253267,2102.1,2101.3,0.001]
[1770544231222,1.18929041,2102.1,2101.3,0.001]
[1770544231850,2.18182308,2102.1,2101.4,0.001]
[1770544232457,0.99253267,2101.9,2101.3,0.001]
[1770544232632,0.99253267,2101.9,2101.3,0.002]
[1770544233033,0.99253267,2102.2,2101.3,0.002]
[1770544233537,1.1892869,2102.1,2101.3,0.002]
[1770544234057,1.1892694,2102.2,2101.3,0.95691951]
[1770544235155,0.99253267,2102.1,2101.3,0.002]
[1770544235463,1.18945665,2101.8,2101.3,0.002]
[1770544239562,0.90341027,2101.7,2101.3,0.001]
[1770544239751,1.18956985,2101.6,2101.3,0.001]
[1770544240561,1.23040284,2101.6,2101.1,0.001]
[1770544240775,0.90341027,2101.5,2100.8,0.001]
[1770544241338,0.94424326,2101.3,2100.6,0.001]
[1770544241962,2.09320657,2101.2,2100.6,0.001]
[1770544242464,1.18978042,2101.3,2100.6,0.001]
[1770544244354,4.75886017,2101.4,2100.8,0.001]
[1770544244663,4.75855879,2101.5,2100.8,0.001]
[1770544244847,1.18951325,2101.7,2100.8,0.93889733]
[1770544246542,4.758053,2101.8,2100.9,2.12786353]
[1770544247763,0.94424326,2101.6,2100.8,0.001]
[1770544248853,1.18962645,2101.5,2100.8,0.001]
[1770544254376,1.18962645,2101.5,2100.8,0.93889733]
[1770544256074,1.18958817,2101.6,2100.8,0.93889733]
[1770544256257,4.75792357,2101.8,2100.8,0.93889733]
[1770544256454,4.75792357,2101.8,2100.9,1.1899662]
[1770544256664,4.75792357,2101.8,2101.0,0.93889733]
[1770544257077,0.002,2101.3,2101.0,0.93889733]
[1770544259547,0.002,2101.3,2101.0,0.001]
[1770544260781,0.002,2101.3,2101.0,2.12879783]
[1770544261076,0.002,2101.3,2101.0,0.93889733]
[1770544261448,0.002,2101.3,2101.0,0.001]
[1770544262203,0.002,2101.3,2100.8,0.001]
[1770544262358,0.002,2101.3,2100.6,0.001]
[1770544262359,0.94424326,2101.2,2100.6,0.001]
[1770544263793,1.18985293,2101.1,2100.6,0.001]
[1770544267572,1.02734672,2101.0,2100.3,0.001]
[1770544268179,2.17647993,2100.9,2100.3,0.00010421]
[1770544269090,2.17647993,2100.9,2100.8,0.001]
[1770544269287,0.98651373,2100.8,2100.5,0.001]
[1770544269493,0.98651373,2100.8,2100.3,0.00010421]
[1770544269895,0.04083299,2100.7,2100.1,0.001]
[1770544270195,0.98651373,2100.5,2099.9,0.0018]
[1770544270497,0.98651373,2100.5,2098.6,1.19123766]
[1770544270498,1.02734672,2100.0,2098.6,1.19123766]
[1770544270674,1.02734672,2100.0,2097.0,0.04083299]
[1770544270675,1.02734672,2099.6,2098.1,4.7661782]
[1770544270875,3.327,2099.9,2098.6,0.98099961]
[1770544271074,4.31351373,2100.3,2098.6,0.98099961]
[1770544271897,3.327,2100.3,2098.6,0.98099961]
[1770544272207,4.51735966,2100.3,2099.0,0.98099961]
[1770544272502,1.19035966,2100.3,2099.0,0.98099961]
[1770544273370,2.17687339,2100.3,2099.0,0.98099961]
[1770544273600,0.04083299,2100.1,2099.0,0.98099961]
[1770544274211,1.19047619,2100.0,2098.9,1.1911001]
[1770544274579,2.10951174,2100.0,2098.9,2.1877478]
[1770544274781,2.10951174,2100.0,2098.9,0.9966477]
[1770544274782,1.19047619,2100.0,2098.9,0.9966477]
[1770544275187,4.76146321,2100.2,2098.9,0.9966477]
[1770544275388,4.8022962,2100.2,2098.9,0.9966477]
[1770544275671,5.72133175,2100.2,2098.9,0.9966477]
[1770544276200,0.91903555,2100.1,2099.0,1.19104335]
[1770544277316,0.04083299,2099.9,2098.9,2.18770536]
[1770544278421,0.91903555,2099.7,2098.9,1.19105766]
[1770544278722,0.91903555,2099.7,2098.9,1.19109471]
[1770544278895,1.19058957,2099.8,2098.9,1.19109471]
[1770544279310,2.10962512,2099.8,2098.9,1.19109471]
[1770544279516,2.10962512,2099.8,2098.9,0.91069471]
[1770544279695,1.19058957,2099.8,2099.0,0.30860872]
[1770544280126,1.19058957,2099.8,2098.9,0.91069471]
[1770544280127,0.91903555,2099.7,2098.9,0.91069471]
[1770544280335,1.19070299,2099.6,2098.7,1.1912136]
[1770544280630,1.19070299,2099.6,2098.6,1.19126013]
[1770544280831,3.328,2099.7,2098.7,0.9966477]
[1770544280990,4.51865141,2099.7,2098.7,0.9966477]
[1770544281194,4.51864929,2099.7,2098.7,0.9966477]
[1770544281395,4.51864929,2099.7,2099.2,0.001]
[1770544281614,4.51864929,2099.7,2098.7,0.9966477]
[1770544281818,4.51864929,2099.7,2098.6,1.19126013]
[1770544281819,0.91903555,2099.6,2098.6,1.19126013]
[1770544282009,0.91903555,2099.6,2099.0,0.001]
[1770544282192,4.51864929,2099.7,2099.0,0.001]
[1770544282807,4.51864929,2099.7,2098.9,1.1911001]
[1770544283118,5.43768484,2099.7,2098.8,1.19112358]
[1770544283422,0.91903555,2099.6,2098.8,1.19115324]
[1770544283592,0.91903555,2099.6,2098.3,4.76655376]
[1770544283930,0.91903555,2099.6,2098.6,1.19122668]
[1770544284111,4.55948228,2099.7,2098.8,2.18778831]
[1770544284288,0.91903555,2099.6,2098.8,1.19114061]
[1770544284496,1.1907597,2099.5,2098.6,1.19127037]
[1770544285223,1.1907416,2099.6,2098.7,0.9966477]
[1770544286021,0.91903555,2099.5,2098.6,1.19127037]
[1770544286330,1.1907416,2099.6,2098.7,0.9966477]
[1770544286501,1.1907416,2099.6,2098.8,1.19115685]
[1770544286711,3.328,2099.7,2098.9,0.9966477]
[1770544286907,6.48,2100.1,2098.9,0.9966477]
[1770544287119,1.19024947,2100.4,2098.9,0.9966477]
[1770544287331,2.10925108,2100.5,2098.9,0.9966477]
[1770544287837,1.19020515,2100.5,2098.9,0.9966477]
[1770544288425,2.15007369,2100.5,2099.1,0.9966477]
[1770544288728,0.91903555,2100.5,2099.3,0.9966477]
[1770544288907,4.51916887,2100.6,2099.3,0.9966477]
[1770544289298,0.91903555,2100.5,2099.3,0.9966477]
[1770544289514,4.56000186,2100.6,2099.3,0.9966477]
[1770544289722,5.47903741,2100.6,2099.3,0.9966477]
[1770544290028,4.51916887,2100.6,2099.3,0.9966477]
[1770544290519,5.47903741,2100.6,2099.3,0.9966477]
[1770544290729,5.47903741,2100.6,2099.4,1.19081642]
[1770544291024,5.47903741,2100.6,2099.4,2.18746412]
[1770544291522,5.43820442,2100.6,2099.4,2.18746412]